fUSD/lending_fUSD_20260414
["ID","MTS","AMOUNT","RATE_DAILY","PERIOD"]
[420448381,1776097423857,-2278.75,0.00045479,120]
[420448382,1776097424081,-2329.903026,0.00045479,120]
[420448383,1776097424304,-500.0,0.00045479,120]
[420448384,1776097424521,-2278.75,0.00045479,120]
[420448385,1776097424740,-500.0,0.00045479,120]
[420448386,1776097424903,-196.856454,0.00045479,120]
[420448387,1776097425149,-151.0,0.00045479,120]
[420448388,1776097425581,-2329.903026,0.00045479,120]
[420448389,1776097425917,-2278.75,0.00045479,120]
[420448390,1776097426118,-1166.743106,0.00045479,120]
[420448391,1776097426262,-500.0,0.00045479,120]
[420448392,1776097426431,-151.0,0.00045479,120]
[420448393,1776097426585,-2278.75,0.00045479,120]
[420448394,1776097426735,-2329.903026,0.00045479,120]
[420448395,1776097426886,-500.0,0.00045479,120]
[420448396,1776097427021,-500.0,0.00045479,120]
[420448397,1776097427172,-2278.75,0.00045479,120]
[420448398,1776097427320,-500.0,0.00045479,120]
[420448399,1776097427462,-151.0,0.00045479,120]
[420448400,1776097427615,-2278.75,0.00045479,120]
[420448401,1776097427760,-500.0,0.00045479,120]
[420448402,1776097427905,-500.0,0.00045479,120]
[420448403,1776097428061,-2278.75,0.00045479,120]
[420448404,1776097428216,-500.0,0.00045479,120]
[420448405,1776097428359,-1166.743106,0.00045479,120]
[420448406,1776097428498,-500.0,0.00045479,120]
[420448407,1776097428656,-253.359065,0.00045479,120]
[420448408,1776097428796,-317.79413928,0.00045479,120]
[420448409,1776097428938,-205.36151,0.00045479,120]
[420448410,1776097429086,-500.0,0.00045479,120]
[420448411,1776097429227,-2329.903026,0.00045479,120]
[420448412,1776097429376,-1166.743106,0.00045479,120]
[420448413,1776097429520,-253.359065,0.00045479,120]
[420448414,1776097429661,-205.36151,0.00045479,120]
[420448415,1776097429802,-500.0,0.00045479,120]
[420448416,1776097429943,-2329.903026,0.00045479,120]
[420448417,1776097430097,-500.0,0.00045479,120]
[420448418,1776097430245,-1166.743106,0.00045479,120]
[420448419,1776097430400,-500.0,0.00045479,120]
[420448420,1776097430591,-253.359065,0.00045479,120]
[420448421,1776097430761,-205.36151,0.00045479,120]
[420448422,1776097430978,-500.0,0.00045479,120]
[420448423,1776097431116,-500.0,0.00045479,120]
[420448424,1776097431274,-2329.903026,0.00045479,120]
[420448425,1776097431434,-505.0151398,0.00045479,120]
[420448426,1776097431612,-500.0,0.00045479,120]
[420448427,1776097431762,-500.0,0.00045479,120]
[420448428,1776097431906,-500.0,0.00045479,120]
[420448429,1776097432086,-500.0,0.00045479,120]
[420448430,1776097432238,-472.17662962,0.00045479,120]
[420448431,1776097432410,-1166.743106,0.00045479,120]
[420448432,1776097432547,-500.0,0.00045479,120]
[420448433,1776097432790,-253.359065,0.00045479,120]
[420448434,1776097432978,-205.36151,0.00045479,120]
[420448435,1776097433137,-1176.03,0.00045479,120]
[420448436,1776097433285,-2329.903026,0.00045479,120]
[420448437,1776097433452,-1176.03,0.00045479,120]
[420448438,1776097433593,-1166.743106,0.00045479,120]
[420448439,1776097433742,-205.36151,0.00045479,120]
[420448440,1776097433882,-253.359065,0.00045479,120]
[420448441,1776097434041,-1176.03,0.00045479,120]
[420448442,1776097434201,-500.0,0.00045479,120]
[420448443,1776097434341,-2329.903026,0.00045479,120]
[420448444,1776097434496,-1166.743107,0.00045479,120]
[420448445,1776097434656,-500.0,0.00045479,120]
[420448446,1776097434807,-1176.03,0.00045479,120]
[420448447,1776097434977,-205.36151,0.00045479,120]
[420448448,1776097435122,-253.359065,0.00045479,120]
[420448449,1776097435272,-500.0,0.00045479,120]
[420448450,1776097435418,-2329.903026,0.00045479,120]
[420448451,1776097435557,-1176.03,0.00045479,120]
[420448452,1776097435709,-500.0,0.00045479,120]
[420448453,1776097435868,-500.0,0.00045479,120]
[420448454,1776097436024,-1176.03,0.00045479,120]
[420448455,1776097436190,-500.0,0.00045479,120]
[420448456,1776097436358,-747.800508,0.00045479,120]
[420448457,1776097436503,-500.0,0.00045479,120]
[420448458,1776097436657,-1176.03,0.00045479,120]
[420448459,1776097436797,-500.0,0.00045479,120]
[420448460,1776097436938,-500.0,0.00045479,120]
[420448461,1776097437089,-747.800508,0.00045479,120]
[420448462,1776097437249,-500.0,0.00045479,120]
[420448463,1776097437410,-1176.03,0.00045479,120]
[420448464,1776097437563,-500.0,0.00045479,120]
[420448465,1776097437722,-205.36151,0.00045479,120]
[420448466,1776097437872,-500.0,0.00045479,120]
[420448467,1776097438062,-253.359065,0.00045479,120]
[420448468,1776097438229,-1176.03,0.00045479,120]
[420448469,1776097438822,-747.800508,0.00045479,120]
[420448470,1776097438978,-500.0,0.00045479,120]
[420448471,1776097439143,-500.0,0.00045479,120]
[420448472,1776097439324,-203.87974279,0.00045479,120]
[420448473,1776097439514,-1176.03,0.00045479,120]
[420448474,1776097439701,-500.0,0.00045479,120]
[420448475,1776097439877,-205.36151,0.00045479,120]
[420448476,1776097440113,-253.359065,0.00045479,120]
[420448477,1776097440311,-2329.903026,0.00045479,120]
[420448478,1776097440504,-1176.03,0.00045479,120]
[420448479,1776097440754,-500.0,0.00045479,120]
[420448480,1776097440983,-500.0,0.00045479,120]
[420448481,1776097441210,-1176.03,0.00045479,120]
[420448482,1776097441464,-205.36151,0.00045479,120]
[420448483,1776097441731,-500.0,0.00045479,120]
[420448484,1776097441974,-454.65424379,0.00045479,120]
[420448485,1776097442216,-253.359065,0.00045479,120]
[420448486,1776097442426,-2329.903026,0.00045479,120]
[420448487,1776097442653,-1176.03,0.00045479,120]
[420448488,1776097442918,-500.0,0.00045479,120]
[420448489,1776097443150,-747.800508,0.00045479,120]
[420448490,1776097443368,-2329.90302,0.00045479,120]
[420448491,1776097443621,-1176.03,0.00045479,120]
[420448492,1776097443857,-500.0,0.00045479,120]
[420448493,1776097444070,-500.0,0.00045479,120]
[420448494,1776097444275,-445.3345586,0.00045479,120]
[420448495,1776097444502,-747.800508,0.00045479,120]
[420448496,1776097444719,-1176.03,0.00045479,120]
[420448497,1776097444932,-500.0,0.00045479,120]
[420448498,1776097445143,-432.55791606,0.00045479,120]
[420448499,1776097445352,-500.0,0.00045479,120]
[420448500,1776097445554,-1176.03,0.00045479,120]
[420448501,1776097445741,-747.800508,0.00045479,120]
[420448502,1776097445936,-500.0,0.00045479,120]
[420448503,1776097446133,-1176.03,0.00045479,120]
[420448504,1776097446359,-205.36151,0.00045479,120]
[420448505,1776097446545,-253.359065,0.00045479,120]
[420448506,1776097446729,-500.0,0.00045479,120]
[420448507,1776097446921,-500.0,0.00045479,120]
[420448508,1776097447091,-1176.03,0.00045479,120]
[420448509,1776097447266,-500.0,0.00045479,120]
[420448510,1776097447483,-500.0,0.00045479,120]
[420448511,1776097447658,-205.36151,0.00045479,120]
[420448512,1776097447840,-253.359065,0.00045479,120]
[420448513,1776097448013,-500.0,0.00045479,120]
[420448514,1776097448170,-1176.03,0.00045479,120]
[420448515,1776097448338,-500.0,0.00045479,120]
[420448516,1776097448490,-205.361502,0.00045479,120]
[420448517,1776097448670,-747.800508,0.00045479,120]
[420448518,1776097448870,-253.359072,0.00045479,120]
[420448519,1776097449029,-500.0,0.00045479,120]
[420448520,1776097449193,-1176.03,0.00045479,120]
[420448521,1776097449351,-500.0,0.00045479,120]
[420448522,1776097449498,-500.0,0.00045479,120]
[420448523,1776097449653,-747.800508,0.00045479,120]
[420448524,1776097449807,-500.0,0.00045479,120]
[420448525,1776097449964,-1176.03,0.00045479,120]
[420448526,1776097450115,-500.0,0.00045479,120]
[420448527,1776097450278,-500.0,0.00045479,120]
[420448528,1776097450438,-1176.03,0.00045479,120]
[420448529,1776097450588,-747.800508,0.00045479,120]
[420448530,1776097450741,-500.0,0.00045479,120]
[420448531,1776097450894,-500.0,0.00045479,120]
[420448532,1776097451055,-1176.03,0.00045479,120]
[420448533,1776097451200,-500.0,0.00045479,120]
[420448534,1776097451377,-500.0,0.00045479,120]
[420448535,1776097451524,-1176.23,0.00045479,120]
[420448536,1776097451695,-500.0,0.00045479,120]
[420448537,1776097451899,-500.0,0.00045479,120]
[420448538,1776097452061,-3129.79,0.0004548,120]
[420448539,1776097452224,-1000000.0,0.0004549,120]
[420448540,1776097452376,-1115.157653,0.00045498,30]
[420448541,1776097452529,-1075.369,0.00045499,30]
[420448542,1776097452708,-520144.84760373,0.000455,120]
[420448543,1776097452853,-1000000.0,0.000455,120]
[420448544,1776097452995,-1000000.0,0.000455,120]
[420448545,1776097453164,-1000000.0,0.000455,120]
[420448546,1776097453321,-897532.82892349,0.000455,120]
[420448547,1776097474455,-150.0,0.00011326,2]
[420448548,1776097474500,-187.69405405,0.00012361,2]
[420448549,1776097474541,-270.21301642,0.00012458,2]
[420448550,1776097480016,-224.83,0.00013485,2]
[420448551,1776097480048,-200.0,0.00013807,2]
[420448552,1776097480083,-578.20924308,0.00013874,2]
[420448553,1776097480118,-500.0,0.00013874,2]
[420448554,1776097480150,-209.40437684,0.00013874,2]
[420448555,1776097496481,704.16,5.663e-05,2]
[420448556,1776097496545,704.16,5.961e-05,2]
[420448557,1776097496648,704.16,6.259e-05,2]
[420448558,1776097496726,704.16,6.557e-05,2]
[420448559,1776097497177,704.16,6.855e-05,2]
[420448560,1776097497254,704.16,7.153e-05,2]
[420448561,1776097497317,704.16,7.451e-05,2]
[420448562,1776097497376,704.16,7.749e-05,2]
[420448563,1776097497439,704.16,8.047e-05,2]
[420448564,1776097497507,704.16,8.345e-05,2]
[420448565,1776097497583,704.16,8.643e-05,2]
[420448566,1776097497645,704.16,8.941e-05,2]
[420448567,1776097497691,704.16,9.239e-05,2]
[420448568,1776097497725,238.01292953,9.537e-05,2]
[420448569,1776097497761,466.14707047,9.537e-05,2]
[420448570,1776097497806,704.16,9.836e-05,2]
[420448571,1776097552194,-704.16,0.00010134,2]
[420448572,1776097552210,-704.16,0.00010432,2]
[420448573,1776097552234,-371.16256209,0.0001073,2]
[420448574,1776097552282,-332.99743791,0.0001073,2]
[420448575,1776097552296,-152.0,0.00010735,2]
[420448576,1776097552325,-665.00256209,0.00011028,2]
[420448577,1776097552355,-39.15743791,0.00011028,2]
[420448578,1776097552389,-704.16,0.00011326,2]
[420448579,1776097552408,-1051.89,0.00012661,2]
[420448580,1776097552435,-250.0,0.00013,2]
[420448581,1776097552445,-3240.0,0.00013425,2]
[420448582,1776097552469,-2000.0,0.0001362,2]
[420448583,1776097552482,-2432.32,0.00013846,2]
[420448584,1776097552494,-2474.63,0.00013928,2]
[420448585,1776097552508,-150.99,0.00013928,2]
[420448586,1776097552540,-9999.99,0.00013928,2]
[420448587,1776097552551,-299.99,0.00013928,2]
[420448588,1776097552565,-500.0,0.00014175,2]
[420448589,1776097552582,-500.0,0.00014558,2]
[420448590,1776097552594,-200.0,0.00014558,2]
[420448591,1776097552609,-151.0,0.00014558,2]
[420448592,1776097552631,-151.0,0.00014558,2]
[420448593,1776097552645,-151.0,0.00014558,2]
[420448594,1776097552680,-151.0,0.00014558,2]
[420448595,1776097552695,-151.0,0.00014558,2]
[420448596,1776097552722,-151.0,0.00014558,2]
[420448597,1776097552739,-151.0,0.00014558,2]
[420448598,1776097552775,-151.0,0.00014558,2]
[420448599,1776097552784,-151.0,0.00014558,2]
[420448600,1776097552803,-151.0,0.00014558,2]
[420448601,1776097552820,-151.0,0.00014558,2]
[420448602,1776097552829,-151.0,0.00014558,2]
[420448603,1776097552850,-151.0,0.00014558,2]
[420448604,1776097552864,-151.0,0.00014558,2]
[420448605,1776097552873,-151.0,0.00014558,2]
[420448606,1776097552890,-151.0,0.00014558,2]
[420448607,1776097552904,-151.0,0.00014558,2]
[420448608,1776097552914,-151.0,0.00014558,2]
[420448609,1776097552938,-151.0,0.00014558,2]
[420448610,1776097552949,-151.0,0.00014558,2]
[420448611,1776097552959,-1000.0,0.00014566,2]
[420448612,1776097552984,-152.0,0.00014567,2]
[420448613,1776097552994,-152.0,0.00014567,2]
[420448614,1776097553004,-152.0,0.00014567,2]
[420448615,1776097553019,-33057.3911,0.00014567,2]
[420448616,1776097553032,-1000.0,0.00014567,2]
[420448618,1776097553041,-387.48,0.00014568,2]
[420448619,1776097553051,-151.0,0.00014664,2]
[420448620,1776097553077,-500.0,0.00014666,2]
[420448621,1776097553087,-500.0,0.00014666,2]
[420448622,1776097553097,-500.0,0.00014666,2]
[420448623,1776097553110,-500.0,0.00014666,2]
[420448624,1776097553131,-500.0,0.00014666,2]
[420448625,1776097553147,-500.0,0.00014666,2]
[420448626,1776097553167,-500.0,0.00014666,2]
[420448627,1776097553177,-500.0,0.00014707,2]
[420448628,1776097553187,-503.45930392,0.00014723,2]
[420448629,1776097553216,-6777.4493,0.00014725,2]
[420448630,1776097553226,-3638.3346,0.00014767,2]
[420448631,1776097553242,-500.0,0.00014825,2]
[420448632,1776097553256,-162.114713,0.00014873,2]
[420448633,1776097553266,-500.0,0.00014873,2]
[420448634,1776097553277,-500.0,0.00014873,2]
[420448635,1776097553290,-500.58014116,0.00014873,2]
[420448636,1776097553302,-500.0,0.00014873,2]
[420448637,1776097553317,-500.0,0.00014943,2]
[420448638,1776097553327,-489.01,0.00015,2]
[420448639,1776097553340,-300.0,0.00015,2]
[420448640,1776097553350,-2714.36,0.00015,2]
[420448641,1776097553365,-500.0,0.0001506,2]
[420448642,1776097553386,-200.0,0.00015106,2]
[420448643,1776097553397,-500.0,0.00015177,2]
[420448644,1776097553408,-2500.0,0.00015199,2]
[420448645,1776097553419,-500.0,0.00015223,2]
[420448646,1776097553448,-500.0,0.00015223,2]
[420448647,1776097553469,-340.04008098,0.00015223,2]
[420448648,1776097553484,-500.0,0.00015223,2]
[420448649,1776097553495,-500.0,0.00015223,2]
[420448650,1776097553513,-500.0,0.00015223,2]
[420448651,1776097553548,-780.88725081,0.00015225,2]
[420448652,1776097553564,-190.68667205,0.00015298,2]
[420448653,1776097553584,-565.09,0.00015298,2]
[420448654,1776097553593,-500.0,0.00015298,2]
[420448655,1776097553610,-500.0,0.00015298,2]
[420448656,1776097553626,-500.0,0.00015298,2]
[420448657,1776097553640,-500.0,0.00015298,2]
[420448658,1776097553658,-313.60789351,0.00015298,2]
[420448659,1776097553668,-35930.70518067,0.00015299,2]
[420448660,1776097553710,-17225.78659102,0.00015299,2]
[420448661,1776097553725,-2363.17503185,0.00015299,2]
[420448662,1776097553758,-371.98130468,0.00015299,2]
[420448663,1776097553811,-7176.0,0.00015299,2]
[420448664,1776097554305,-667.96197469,0.00015299,2]
[420448665,1776097554327,-1786.99595012,0.00015299,2]
[420448666,1776097554357,-16949.13570555,0.00015299,2]
[420448667,1776097554392,-89773.80130712,0.00015299,2]
[420448668,1776097554414,-500.0,0.00015299,2]
[420448669,1776097554454,-500.0,0.00015299,2]
[420448670,1776097554475,-500.0,0.00015299,2]
[420448671,1776097554487,-500.0,0.00015299,2]
[420448672,1776097554527,-25737.58747824,0.000153,2]
[420448673,1776097554539,-1500.0,0.000153,2]
[420448674,1776097554560,-838.48977747,0.000153,2]
[420448675,1776097554604,-922.35139594,0.000153,2]
[420448676,1776097554623,-762.63857592,0.000153,2]
[420448677,1776097554636,-1472.70282569,0.000153,2]
[420448678,1776097555323,256.33655893,5.961e-05,2]
[420448679,1776097555424,-335.90610531,0.000153,2]
[420448680,1776097555579,384.50483839,6.557e-05,2]
[420448681,1776097556230,-211.65813014,0.00014558,2]
[420448682,1776097556293,-288.34186986,0.00014558,2]
[420448683,1776097556306,-500.0,0.00014832,2]
[420448684,1776097556316,-1838.8094083,0.000153,2]
[420448685,1776097556925,-286.886,0.000153,2]
[420448686,1776097556970,-427.67015431,0.000153,2]
[420448687,1776097557249,-916.66192653,0.000153,2]
[420448688,1776097557623,-436000.0,0.000153,2]
[420448689,1776097559012,150.0,0.00011892,2]
[420448690,1776097559106,255.0,0.00012974,2]
[420448691,1776097559235,300.0,8.642e-05,2]
[420448692,1776097564080,150.0,8.3e-05,2]
[420448693,1776097564190,189.086,9.7e-05,2]
[420448694,1776097564268,238.3569,0.000112,2]
[420448695,1776097565961,233.0,5.663e-05,2]
[420448696,1776097571171,-470.0,0.0001611,15]
[420448697,1776097571348,300.0,8.344e-05,2]
[420448698,1776097571458,420.0,9.179e-05,2]
[420448699,1776097571552,587.0,0.00010097,2]
[420448700,1776097571646,823.0,0.00011106,2]
[420448701,1776097571747,193.0,6.229e-05,2]
[420448702,1776097571821,179.0,0.00012217,2]
[420448703,1776097572062,250.3625571,7.747e-05,2]
[420448704,1776097574825,178.0,5.663e-05,2]
[420448705,1776097575752,150.0,7.7e-05,2]
[420448706,1776097578791,404.2045429,0.0001166,2]
[420448707,1776097578825,1195.7954571,0.0001166,2]
[420448708,1776097582272,3804.2145429,7.7e-05,2]
[420448709,1776097582297,1195.7754571,7.7e-05,2]
[420448710,1776097582439,3804.2345429,7.7e-05,2]
[420448711,1776097582494,5000.01,7.7e-05,2]
[420448712,1776097582529,1195.7454571,7.7e-05,2]
[420448713,1776097582660,9999.99,7.7e-05,2]
[420448714,1776097582795,6231.49,7.7e-05,2]
[420448715,1776097586295,150.0,7.699e-05,2]
[420448716,1776097586440,255.0,8.469e-05,2]
[420448717,1776097586844,300.0,7.699e-05,2]
[420448718,1776097595475,299.99,7.699e-05,2]
[420448719,1776097595917,999.99,7.699e-05,2]
[420448720,1776097596572,-464.0,0.00032778,30]
[420448721,1776097596624,-232.0,0.00032778,30]
[420448722,1776097596650,-408.0,0.00032778,30]
[420448723,1776097596676,-896.0,0.00032778,30]
[420448724,1776097596961,2118.88,7.699e-05,2]
[420448725,1776097597283,150.99,7.699e-05,2]
[420448726,1776097597609,951.36,7.699e-05,2]
[420448727,1776097598899,1200.0,7.45e-05,2]
[420448728,1776097599036,1680.0,8.195e-05,2]
[420448729,1776097602115,299.34286926,0.0001,4]
[420448730,1776097602269,299.34286926,0.0001,4]
[420448731,1776097604667,-200.0,0.00011476,2]
[420448732,1776097604695,-1600.0,0.00013117,2]
[420448733,1776097604729,-4703.681878,0.00013417,2]
[420448734,1776097604824,-150.0,0.00013699,2]
[420448735,1776097604854,-150.0,0.00013699,2]
[420448736,1776097604905,-166.66,0.00013699,2]
[420448737,1776097604942,-158.50698867,0.00013774,2]
[420448738,1776097604990,-166.66,0.00013836,2]
[420448739,1776097615053,-4755.25,0.00011226,2]
[420448740,1776097615101,-166.66,0.00013973,2]
[420448741,1776097625775,6012.77853099,0.00011,2]
[420448742,1776097631715,476.54539561,5.663e-05,2]
[420448743,1776097632054,4041.25,0.00011242,2]
[420448744,1776097635912,299.34286927,0.0001,4]
[420448745,1776097636381,1003.98125843,0.0001305,2]
[420448746,1776097636488,261.8113099,0.000101,2]
[420448747,1776097639942,218.71399813,0.00013,15]
[420448748,1776097644843,628167.90793953,0.000107,2]
[420448749,1776097645196,170.29,6.393e-05,2]
[420448750,1776097645246,170.29,7.192e-05,2]
[420448751,1776097645297,170.29,7.991e-05,2]
[420448752,1776097645343,170.29,8.79e-05,2]
[420448753,1776097645401,170.29,9.589e-05,2]
[420448754,1776097649891,159.32866069,0.00011325,2]
[420448755,1776097649962,159.32866069,0.00013874,2]
[420448756,1776097650592,150.0,7.699e-05,2]
[420448757,1776097654395,150.99,8.058e-05,2]
[420448758,1776097655489,299.99,8.058e-05,2]
[420448759,1776097655694,2896.74,8.058e-05,2]
[420448760,1776097656166,265.65,8.058e-05,2]
[420448761,1776097656859,9667.04,8.058e-05,2]
[420448762,1776097657573,1248.47,0.00013699,2]
[420448763,1776097660068,4266.32,0.00011282,2]
[420448764,1776097665425,300.0,7.449e-05,2]
[420448765,1776097666933,501.02638481,9.7e-05,2]
[420448766,1776097670885,666.38,7.837e-05,2]
[420448767,1776097677734,-166.66,0.0001411,2]
[420448768,1776097677780,-166.66,0.00014247,2]
[420448769,1776097677807,-166.66,0.00014384,2]
[420448770,1776097677837,-1248.47,0.00014384,2]
[420448771,1776097677866,-152.3967772,0.000144,2]
[420448772,1776097677895,-734.38,0.00014558,2]
[420448773,1776097677928,-1600.0,0.00014575,2]
[420448774,1776097677965,-734.38,0.00014832,2]
[420448775,1776097677999,-8055.32042713,0.00015,2]
[420448776,1776097678625,5410.56,8.219e-05,2]
[420448777,1776097678717,5410.56,0.00011507,2]
[420448778,1776097680396,152.28985665,0.00010699,2]
[420448779,1776097683947,1200.0,6.556e-05,2]
[420448780,1776097686599,-1248.47,0.00015068,2]
[420448781,1776097686608,-102.67592439,0.00015199,2]
[420448782,1776097686628,-522.00245098,0.00015199,2]
[420448783,1776097686640,-1150.0,0.00015199,2]
[420448784,1776097686657,-1557.27262659,0.00015199,2]
[420448785,1776097686671,-2363.17503185,0.00015199,2]
[420448786,1776097686683,-1470.84610259,0.00015199,2]
[420448787,1776097686697,-7176.0,0.00015199,2]
[420448788,1776097686713,-1779.48256209,0.00015199,2]
[420448789,1776097686724,-5705.642288,0.00015199,2]
[420448790,1776097686752,-11230.29411351,0.00015199,2]
[420448791,1776097686762,-1000.0,0.00015199,2]
[420448792,1776097686772,-1000.0,0.00015199,2]
[420448793,1776097686783,-2500.0,0.00015199,2]
[420448794,1776097686793,-1699.17829694,0.000152,2]
[420448795,1776097686803,-500.0,0.00015298,2]
[420448796,1776097686817,-500.0,0.00015298,2]
[420448797,1776097686829,-518.75523557,0.00015298,2]
[420448798,1776097686839,-500.0,0.00015298,2]
[420448799,1776097686848,-500.0,0.00015298,2]
[420448800,1776097686866,-328.97243185,0.00015298,2]
[420448801,1776097686878,-500.0,0.00015298,2]
[420448802,1776097686904,-500.0,0.00015298,2]
[420448803,1776097686914,-500.0,0.00015298,2]
[420448804,1776097686928,-513.16771319,0.00015298,2]
[420448805,1776097686951,-996410.56877759,0.000153,2]
[420448806,1776097686981,-187178.54586983,0.000153,2]
[420448807,1776097686994,-204950.17738239,0.000153,2]
[420448808,1776097687026,-328234.12964401,0.000153,2]
[420448809,1776097687037,-1254.41808677,0.000153,2]
[420448810,1776097687257,-16949.13570555,0.000153,2]
[420448811,1776097687284,-124474.65687819,0.000153,2]
[420448812,1776097687298,-1786.99595012,0.000153,2]
[420448813,1776097687566,-838.48977747,0.000153,2]
[420448814,1776097687611,-7231.10946283,0.000153,2]
[420448815,1776097687671,-191219.9169878,0.000153,2]
[420448816,1776097687727,-1500.0,0.000153,2]
[420448817,1776097687744,-425740.4304422,0.000153,2]
[420448818,1776097687784,-762.63857592,0.000153,2]
[420448819,1776097687815,-1472.70282569,0.000153,2]
[420448820,1776097687829,-44851.37577616,0.000153,2]
[420448821,1776097687875,-667.96197469,0.000153,2]
[420448822,1776097687934,-4976.28028505,0.000153,2]
[420448823,1776097688378,-530.0,0.000153,2]
[420448824,1776097688422,-335.90610531,0.000153,2]
[420448825,1776097688437,-890.74193947,0.000153,2]
[420448826,1776097688460,-602.13128132,0.000153,2]
[420448827,1776097688806,-2627.15127816,0.000153,2]
[420448828,1776097688859,-3031.75376585,0.000153,2]
[420448829,1776097688881,-11584.47180206,0.000153,2]
[420448830,1776097688909,-722.8955016,0.000153,2]
[420448831,1776097689065,-181308.42921487,0.000153,2]
[420448832,1776097689225,-427.67015431,0.000153,2]
[420448833,1776097689751,-11000.0,0.000153,2]
[420448834,1776097689793,-8463.79969522,0.000153,2]
[420448835,1776097689827,-286.886,0.000153,2]
[420448836,1776097689845,-52731.03845168,0.000153,2]
[420448837,1776097690322,500.0,7.837e-05,2]
[420448838,1776097691580,300.0,6.854e-05,2]
[420448839,1776097691889,150.0,6.8e-05,2]
[420448840,1776097691937,189.1235,8.3e-05,2]
[420448841,1776097694263,233.0,5.663e-05,2]
[420448842,1776097696089,300.0,6.556e-05,2]
[420448843,1776097696140,407.0,7.212e-05,2]
[420448844,1776097697706,150.0,6.8e-05,2]
[420448845,1776097697764,189.1365,8.3e-05,2]
[420448846,1776097698895,160.0,0.00013649,2]
[420448847,1776097699155,344.011041,0.00013649,2]
[420448848,1776097699245,534.23599123,0.00010699,2]
[420448849,1776097699299,534.23599123,0.00010699,2]
[420448850,1776097699364,534.23599123,0.00010699,2]
[420448851,1776097699410,534.23599123,0.00010699,2]
[420448852,1776097699468,534.23599123,0.00010699,2]
[420448853,1776097699535,534.23599123,0.00010699,2]
[420448854,1776097699604,534.23599123,0.00010699,2]
[420448855,1776097699678,534.23599123,0.00010699,2]
[420448856,1776097699750,534.23599123,0.00010699,2]
[420448857,1776097699830,534.23599123,0.00010699,2]
[420448858,1776097699925,534.23599123,0.00010699,2]
[420448859,1776097700004,534.23599123,0.00010699,2]
[420448860,1776097700074,534.23599123,0.00010699,2]
[420448861,1776097700156,528.022083,0.00013649,2]
[420448862,1776097700223,534.23599123,0.00010699,2]
[420448863,1776097700300,534.23599123,0.00010699,2]
[420448864,1776097700361,534.23599123,0.00010699,2]
[420448865,1776097700441,534.23599123,0.00010699,2]
[420448866,1776097700509,534.23599123,0.00010699,2]
[420448867,1776097700571,534.23599123,0.00010699,2]
[420448868,1776097700628,534.23599123,0.00010699,2]
[420448869,1776097701822,160.0,0.00013649,2]
[420448870,1776097701900,4410.735826,0.00013649,2]
[420448871,1776097701954,8661.471653,0.00013649,2]
[420448872,1776097702028,607.24393167,0.00010699,2]
[420448873,1776097702072,607.24393167,0.00010699,2]
[420448874,1776097702118,607.24393167,0.00010699,2]
[420448875,1776097702174,607.24393167,0.00010699,2]
[420448876,1776097702267,607.24393167,0.00010699,2]
[420448877,1776097702406,607.24393167,0.00010699,2]
[420448878,1776097702781,607.24393167,0.00010699,2]
[420448879,1776097702875,607.24393167,0.00010699,2]
[420448880,1776097702929,607.24393167,0.00010699,2]
[420448881,1776097702982,607.24393167,0.00010699,2]